bitfinex-derivatives/quotes_BTCF0:USTF0_20250427
["timestamp","ask_amount","ask_price","bid_price","bid_amount"]
[1745755726573,0.504,93918.0,93917.0,0.30589517]
[1745755726974,0.49068905,93918.0,93917.0,0.66669517]
[1745755728083,0.49068905,93918.0,93917.0,0.56021918]
[1745755728785,0.49068905,93918.0,93917.0,0.66669517]
[1745755729079,0.48483056,93918.0,93917.0,0.66669517]
[1745755730577,0.25,93920.0,93917.0,1.44907517]
[1745755730777,0.25,93920.0,93918.0,0.10647599]
[1745755731178,0.25,93920.0,93919.0,0.17017599]
[1745755731784,0.252,93920.0,93919.0,0.17017599]
[1745755732177,0.254,93920.0,93919.0,0.29017599]
[1745755732373,0.754,93920.0,93919.0,0.29017599]
[1745755733381,0.754,93920.0,93919.0,0.29117599]
[1745755735271,0.754,93920.0,93919.0,1.01277599]
[1745755737076,0.74069052,93920.0,93919.0,1.01277599]
[1745755740385,0.74069052,93920.0,93919.0,0.29117599]
[1745755740584,0.74069052,93920.0,93919.0,1.01277599]
[1745755741685,0.74069052,93920.0,93919.0,0.8738]
[1745755742386,0.74069052,93920.0,93919.0,0.1522]
[1745755742688,0.74069052,93920.0,93919.0,0.513]
[1745755750893,0.74069052,93920.0,93919.0,0.57828]
[1745755751395,0.74069052,93920.0,93919.0,0.54708]
[1745755752184,0.86069052,93920.0,93919.0,0.06628]
[1745755773806,0.86069052,93920.0,93919.0,0.001]
[1745755775105,0.74069052,93920.0,93919.0,0.001]
[1745755776099,0.86069052,93920.0,93919.0,0.001]
[1745755779207,0.74069052,93920.0,93919.0,0.001]
[1745755780809,0.80279052,93920.0,93919.0,0.001]
[1745755784103,0.92279052,93920.0,93919.0,0.001]
[1745755798405,0.92279052,93920.0,93919.0,0.0322]
[1745755799509,0.92279052,93920.0,93919.0,0.0636]
[1745755800111,0.80279052,93920.0,93919.0,0.0636]
[1745755801107,0.92279052,93920.0,93919.0,0.0636]
[1745755803127,0.74069052,93920.0,93919.0,0.0636]
[1745755803312,0.74069052,93920.0,93919.0,0.4244]
[1745755804221,0.74069052,93920.0,93919.0,0.5444]
[1745755806124,0.74069052,93920.0,93919.0,0.4244]
[1745755807118,0.74069052,93920.0,93919.0,0.1836]
[1745755809125,0.74069052,93920.0,93919.0,0.0636]
[1745755811123,0.74069052,93920.0,93919.0,0.1836]
[1745755812320,0.74069052,93920.0,93919.0,0.0636]
[1745755812921,0.74069052,93920.0,93919.0,0.1286]
[1745755822624,0.77159052,93920.0,93919.0,0.1286]
[1745755830048,0.77159052,93920.0,93919.0,0.4894]
[1745755833445,0.75827928,93920.0,93919.0,0.4894]
[1745755841047,0.72737928,93920.0,93919.0,0.4894]
[1745755844664,0.72737928,93920.0,93919.0,0.1286]
[1745755844962,0.72737928,93920.0,93919.0,0.4894]
[1745755845756,0.76067928,93920.0,93919.0,0.4894]
[1745755849268,0.74736849,93920.0,93919.0,0.4894]
[1745755849662,0.74736849,93920.0,93919.0,0.1286]
[1745755849861,0.74736849,93920.0,93919.0,0.4894]
[1745755854770,0.74736849,93920.0,93919.0,0.1286]
[1745755854971,0.74736849,93920.0,93919.0,0.4894]
[1745755859572,0.74736849,93920.0,93919.0,0.1286]
[1745755859777,0.74736849,93920.0,93919.0,0.4894]
[1745755861957,0.73405797,93920.0,93919.0,0.4894]
[1745755869374,0.70075797,93920.0,93919.0,0.458]
[1745755869565,0.54326873,93920.0,93919.0,0.4894]
[1745755869767,0.54326873,93920.0,93919.0,0.59587599]
[1745755870073,0.54326873,93920.0,93919.0,0.71587599]
[1745755870971,0.54326873,93920.0,93919.0,0.35507599]
[1745755871178,0.54326873,93920.0,93919.0,0.71587599]
[1745755871374,0.54326873,93920.0,93919.0,0.65087599]
[1745755871673,0.54326873,93920.0,93919.0,0.71539599]
[1745755872076,0.52689704,93920.0,93919.0,0.71539599]
[1745755872575,0.52689704,93920.0,93919.0,0.35459599]
[1745755872772,0.52689704,93920.0,93919.0,0.71539599]
[1745755875367,0.47916524,93920.0,93919.0,0.71539599]
[1745755876175,0.47916524,93920.0,93919.0,0.60892]
[1745755879375,0.45916524,93920.0,93919.0,0.60892]
[1745755879975,0.44585543,93920.0,93919.0,0.60892]
[1745755880776,0.004,93920.0,93919.0,0.60892]
[1745755880987,0.063,93938.0,93919.0,0.71539599]
[1745755881175,0.063,93938.0,93928.0,0.3608]
[1745755881376,0.063,93938.0,93929.0,0.0957]
[1745755881880,0.063,93938.0,93929.0,0.0626]
[1745755882074,0.187,93938.0,93929.0,0.0305]
[1745755882381,0.5,93934.0,93929.0,0.0305]
[1745755882583,0.0314,93933.0,93929.0,0.0305]
[1745755883076,0.0307,93932.0,93929.0,0.0315]
[1745755883675,0.0314,93931.0,93929.0,0.0315]
[1745755884270,0.0331,93930.0,93929.0,0.0345]
[1745755884776,0.0331,93930.0,93929.0,0.0315]
[1745755884978,0.0331,93930.0,93929.0,0.0345]
[1745755885173,0.0645,93930.0,93929.0,0.0345]
[1745755885573,0.0665,93930.0,93929.0,0.0375]
[1745755886080,0.0665,93930.0,93929.0,0.0335]
[1745755886378,0.5685,93930.0,93929.0,0.0375]
[1745755887470,0.5685,93930.0,93929.0,0.007]
[1745755889581,0.5685,93930.0,93929.0,0.0391]
[1745755891478,0.5685,93930.0,93929.0,0.007]
[1745755893085,0.5685,93930.0,93929.0,0.0371]
[1745755895678,0.5685,93930.0,93929.0,0.007]
[1745755895985,0.5685,93930.0,93929.0,0.07148]
[1745755896184,0.6885,93930.0,93929.0,0.07148]
[1745755896786,1.823664,93930.0,93910.0,0.16178877]
[1745755896988,0.7216,93914.0,93910.0,0.16178877]
[1745755897178,0.0303,93913.0,93910.0,0.16959247]
[1745755897378,0.0303,93913.0,93907.0,0.06448]
[1745755897379,0.524384,93912.0,93907.0,0.06448]
[1745755897574,0.106484,93911.0,93907.0,0.06448]
[1745755897783,0.136784,93911.0,93907.0,0.07579827]
[1745755898082,0.106488,93910.0,93907.0,0.07579827]
[1745755898487,0.136788,93909.0,93907.0,0.07579827]
[1745755898672,0.0303,93909.0,93907.0,0.07579827]
[1745755898877,0.106488,93908.0,93907.0,0.07579827]
[1745755899176,0.106488,93908.0,93907.0,0.07679827]
[1745755899177,0.226488,93908.0,93907.0,0.07679827]
[1745755899580,0.226488,93908.0,93907.0,0.0846962]
[1745755899777,0.259088,93908.0,93907.0,0.0846962]
[1745755899979,0.290488,93908.0,93907.0,0.0846962]
[1745755900184,0.325388,93908.0,93907.0,0.0846962]
[1745755901196,0.825388,93908.0,93907.0,0.0846962]
[1745755901682,0.825388,93908.0,93907.0,0.0836962]
[1745755901876,1.548988,93908.0,93907.0,0.0836962]
[1745755902481,1.548988,93908.0,93907.0,0.07237793]
[1745755903081,1.4425,93908.0,93907.0,0.07237793]
[1745755903772,1.4425,93908.0,93907.0,0.0841337]
[1745755903972,1.4425,93908.0,93907.0,0.0196537]
[1745755904172,1.4425,93908.0,93905.0,0.06448]
[1745755904483,1.4425,93908.0,93905.0,0.07235797]
[1745755905088,1.4425,93908.0,93906.0,0.0308]
[1745755905479,1.549988,93908.0,93897.0,0.06448]
[1745755905680,1.4435,93908.0,93897.0,0.06448]
[1745755906390,1.4425,93908.0,93897.0,0.06448]
[1745755906584,1.4425,93908.0,93897.0,0.09528]
[1745755906782,1.4425,93908.0,93897.0,0.06448]
[1745755906979,1.4425,93908.0,93897.0,0.09528]
[1745755907181,1.4425,93908.0,93900.0,0.11457207]
[1745755907980,1.4415,93908.0,93900.0,0.11457207]
[1745755908289,0.106492,93907.0,93900.0,0.11826192]
[1745755908488,0.106492,93907.0,93891.0,0.0304]
[1745755908685,0.7216,93892.0,93891.0,0.0304]
[1745755909085,0.8416,93892.0,93891.0,0.04181337]
[1745755909489,0.8416,93892.0,93891.0,0.0800755]
[1745755909677,0.8416,93892.0,93891.0,0.1445555]
[1745755909882,0.8416,93892.0,93891.0,0.0800755]
[1745755910083,0.8416,93892.0,93891.0,0.1445555]
[1745755910287,0.7216,93892.0,93891.0,0.0496755]
[1745755910481,0.7216,93892.0,93891.0,0.1141555]
[1745755911187,0.7246,93892.0,93891.0,0.1468555]
[1745755911588,0.7276,93892.0,93891.0,0.1468555]
[1745755911782,1.2276,93892.0,93891.0,0.1468555]
[1745755912382,0.506,93892.0,93891.0,0.1468555]
[1745755912581,1.2276,93892.0,93891.0,0.1468555]
[1745755913085,0.626,93892.0,93891.0,0.1468555]
[1745755913286,1.3476,93892.0,93891.0,0.1468555]
[1745755914289,1.2276,93892.0,93891.0,0.1468555]
[1745755920082,0.506,93892.0,93891.0,0.1468555]
[1745755920288,1.2276,93892.0,93891.0,0.1468555]
[1745755920479,1.334104,93892.0,93887.0,0.00532552]
[1745755920680,0.170308,93891.0,93890.0,0.01154046]
[1745755920879,0.170308,93891.0,93887.0,0.00532552]
[1745755921082,0.0638,93891.0,93888.0,0.06508]
[1745755921592,0.106508,93890.0,93884.0,0.06508]
[1745755921889,0.0638,93891.0,93873.0,0.0328]
[1745755922088,0.7276,93892.0,93882.0,0.09728]
[1745755922089,0.0638,93889.0,93882.0,0.09728]
[1745755922288,0.0638,93889.0,93883.0,0.0328]
[1745755922483,0.3608,93884.0,93883.0,0.0328]
[1745755922748,0.3608,93884.0,93883.0,0.066]
[1745755923479,0.3608,93884.0,93883.0,0.07407366]
[1745755924286,0.8608,93884.0,93883.0,0.07407366]
[1745755924786,0.8638,93884.0,93883.0,0.07407366]
[1745755925182,0.8638,93884.0,93883.0,0.19407366]
[1745755925582,0.8668,93884.0,93883.0,0.19407366]
[1745755925783,0.506,93884.0,93883.0,0.19407366]
[1745755925983,0.8668,93884.0,93883.0,0.19407366]
[1745755926189,0.8668,93884.0,93883.0,0.07407366]
[1745755926784,0.8668,93884.0,93883.0,0.00807366]
[1745755927085,0.8668,93884.0,93883.0,0.06508]
[1745755928181,0.8668,93884.0,93883.0,0.12728]
[1745755928785,1.2276,93884.0,93883.0,0.12728]
[1745755930589,1.2276,93884.0,93883.0,0.13511799]
[1745755930793,0.506,93884.0,93883.0,0.13511799]
[1745755930999,0.506,93884.0,93883.0,0.16611799]
[1745755931000,1.2276,93884.0,93883.0,0.16611799]
[1745755931491,0.506,93884.0,93883.0,0.16611799]
[1745755931995,1.2276,93884.0,93883.0,0.00783799]
[1745755932192,1.3476,93884.0,93876.0,0.06508]
[1745755932395,0.0637,93883.0,93873.0,0.0614]
[1745755932694,0.0637,93883.0,93879.0,0.06508]
[1745755932887,0.0637,93883.0,93882.0,0.0331]
[1745755933087,0.0637,93883.0,93882.0,0.04107064]
[1745755933290,0.1837,93883.0,93882.0,0.04107064]
[1745755933995,0.1837,93883.0,93882.0,0.16665064]
[1745755934186,0.1837,93883.0,93882.0,0.18705388]
[1745755934187,0.0697,93883.0,93882.0,0.18705388]
[1745755935091,0.006,93883.0,93882.0,0.18705388]
[1745755935297,0.506,93883.0,93882.0,0.18705388]
[1745755936489,1.2276,93883.0,93882.0,0.18705388]
[1745755937091,1.2276,93883.0,93882.0,0.30705388]
[1745755938897,0.506,93883.0,93882.0,0.30705388]
[1745755939085,1.2276,93883.0,93882.0,0.30705388]
[1745755939287,1.2276,93883.0,93882.0,0.24197388]
[1745755939493,1.2276,93883.0,93882.0,0.27695388]
[1745755940300,1.2276,93883.0,93882.0,0.18835388]
[1745755943197,1.2276,93883.0,93882.0,0.30835388]
[1745755943899,0.8668,93883.0,93882.0,0.30835388]
[1745755944607,0.8668,93883.0,93882.0,0.24327388]
[1745755944901,0.8668,93883.0,93882.0,0.30835388]
[1745755945997,0.506,93883.0,93882.0,0.30835388]
[1745755946297,0.8668,93883.0,93882.0,0.30835388]
[1745755949705,0.85348471,93883.0,93882.0,0.30835388]
[1745755949903,0.85348471,93883.0,93882.0,0.30911388]
[1745755951604,0.49268471,93883.0,93882.0,0.30911388]
[1745755951800,0.85348471,93883.0,93882.0,0.30911388]
[1745755952000,0.49268471,93883.0,93882.0,0.30911388]
[1745755952603,0.85348471,93883.0,93882.0,0.30911388]
[1745755953894,0.85348471,93883.0,93882.0,0.27771388]
[1745755954095,0.85348471,93883.0,93882.0,0.15771388]
[1745755954302,0.85348471,93883.0,93882.0,0.09187388]
[1745755954503,0.85348471,93883.0,93882.0,0.15767388]
[1745755955394,0.85348471,93883.0,93882.0,0.12727388]
[1745755957001,0.49268471,93883.0,93882.0,0.12727388]
[1745755957206,0.85348471,93883.0,93882.0,0.12727388]
[1745755959006,0.49268471,93883.0,93882.0,0.12727388]
[1745755959197,0.85348471,93883.0,93882.0,0.12727388]
[1745755959906,0.49268471,93883.0,93882.0,0.12727388]
[1745755960206,0.85348471,93883.0,93882.0,0.12727388]
[1745755960710,0.85348471,93883.0,93882.0,0.16017388]
[1745755962112,0.97348471,93883.0,93882.0,0.09437388]
[1745755962311,0.97348471,93883.0,93882.0,0.06147388]
[1745755964001,1.06748471,93883.0,93882.0,0.06147388]
[1745755965410,1.42828471,93883.0,93882.0,0.06147388]
[1745755965610,1.42828471,93883.0,93882.0,0.09147388]
[1745755965805,1.43128471,93883.0,93882.0,0.09247388]
[1745755966310,1.40378471,93883.0,93882.0,0.09347388]
[1745755967213,1.28378471,93883.0,93882.0,0.09347388]
[1745755967710,1.28378471,93883.0,93882.0,0.03037388]
[1745755968912,1.28078471,93883.0,93882.0,0.02937388]
[1745755969101,1.40378471,93883.0,93882.0,0.03037388]
[1745755969609,1.51030072,93883.0,93882.0,0.03037388]
[1745755973914,0.78870072,93883.0,93882.0,0.03037388]
[1745755974113,1.51030072,93883.0,93882.0,0.03037388]
[1745755975402,1.51030072,93883.0,93882.0,0.06347388]
[1745755976103,1.40378471,93883.0,93882.0,0.06347388]
[1745755976913,1.40378471,93883.0,93882.0,0.09477388]
[1745755977606,1.51030072,93883.0,93881.0,0.00256429]
[1745755977806,0.10651601,93882.0,93881.0,0.02290841]
[1745755978012,0.10651601,93882.0,93881.0,0.01063661]
[1745755978207,0.29191601,93882.0,93881.0,0.01063661]
[1745755978811,0.78459601,93882.0,93881.0,0.01163661]
[1745755979007,0.78759601,93882.0,93881.0,0.01263661]
[1745755979914,0.64858,93882.0,93881.0,0.01263661]
[1745755980608,0.65158,93882.0,93881.0,0.01263661]
[1745755980917,0.65158,93882.0,93881.0,0.03398474]
[1745755982224,0.61868,93882.0,93881.0,0.03398474]
[1745755982723,0.60536399,93882.0,93881.0,0.03398474]
[1745755983223,0.49868,93882.0,93881.0,0.03398474]
[1745755987423,0.53018,93882.0,93881.0,0.03398474]
[1745755987923,0.56328,93882.0,93881.0,0.03398474]
[1745755988114,0.56328,93882.0,93881.0,0.09708474]
[1745755988316,0.68328,93882.0,93881.0,0.09708474]
[1745755990520,0.65018,93882.0,93881.0,0.09708474]
[1745755991420,0.65018,93882.0,93881.0,0.07573661]
[1745755991621,0.68088,93882.0,93881.0,0.07573661]
[1745755998227,1.04168,93882.0,93881.0,0.07573661]
[1745756000929,0.68088,93882.0,93881.0,0.07573661]
[1745756001231,1.04168,93882.0,93881.0,0.07573661]
[1745756004238,1.04168,93882.0,93881.0,0.01263661]
[1745756005525,0.68088,93882.0,93881.0,0.01263661]
[1745756005727,1.04168,93882.0,93881.0,0.01263661]
[1745756006332,0.68088,93882.0,93881.0,0.01263661]
[1745756006534,1.04168,93882.0,93881.0,0.01263661]
[1745756009618,0.68088,93882.0,93881.0,0.01263661]
[1745756009829,1.04168,93882.0,93881.0,0.01263661]
[1745756010018,1.04168,93882.0,93881.0,0.04303661]
[1745756010323,0.92168,93882.0,93881.0,0.04303661]
[1745756011229,1.04168,93882.0,93881.0,0.04303661]
[1745756011927,0.68088,93882.0,93881.0,0.04303661]
[1745756012129,1.04168,93882.0,93881.0,0.04303661]
[1745756012528,0.68088,93882.0,93881.0,0.04303661]
[1745756012729,1.04168,93882.0,93881.0,0.04303661]
[1745756012931,0.68088,93882.0,93881.0,0.04303661]
[1745756013134,1.04168,93882.0,93881.0,0.04303661]
[1745756013331,0.92168,93882.0,93881.0,0.04303661]
[1745756014737,0.92168,93882.0,93881.0,0.07403661]
[1745756016227,1.04168,93882.0,93881.0,0.07403661]
[1745756016728,0.68088,93882.0,93881.0,0.07403661]
[1745756017023,1.04168,93882.0,93881.0,0.07403661]
[1745756019627,0.68088,93882.0,93881.0,0.07403661]
[1745756020039,1.04168,93882.0,93881.0,0.07403661]
[1745756020226,1.04168,93882.0,93881.0,0.01263661]
[1745756022234,1.04168,93882.0,93881.0,0.04453661]
[1745756023223,1.04168,93882.0,93881.0,0.01263661]
[1745756024433,1.40248,93882.0,93881.0,0.01263661]
[1745756024734,1.40248,93882.0,93881.0,0.04533661]
[1745756027737,0.68088,93882.0,93881.0,0.04533661]
[1745756027931,1.40248,93882.0,93881.0,0.04533661]
[1745756028953,0.68088,93882.0,93881.0,0.04533661]
[1745756029244,1.40248,93882.0,93881.0,0.01263661]
[1745756029841,0.68088,93882.0,93881.0,0.01263661]
[1745756030041,1.40248,93882.0,93881.0,0.01263661]
[1745756030742,1.40248,93882.0,93881.0,0.04383661]
[1745756032844,0.68088,93882.0,93881.0,0.04383661]
[1745756033041,1.40248,93882.0,93881.0,0.04383661]
[1745756034838,0.68088,93882.0,93881.0,0.04383661]
[1745756035045,1.40248,93882.0,93881.0,0.04383661]
[1745756036131,0.68088,93882.0,93881.0,0.04383661]
[1745756036328,1.40248,93882.0,93881.0,0.04383661]
[1745756036531,1.40248,93882.0,93881.0,0.01263661]
[1745756038641,1.53806206,93882.0,93881.0,0.01263661]
[1745756040439,0.81646206,93882.0,93881.0,0.01263661]
[1745756040643,1.53806206,93882.0,93881.0,0.01263661]
[1745756042244,1.41806206,93882.0,93881.0,0.01263661]
[1745756042644,1.28248,93882.0,93881.0,0.01263661]
[1745756043143,1.40248,93882.0,93881.0,0.01263661]
[1745756049237,1.40248,93882.0,93881.0,0.07673661]
[1745756053649,0.68088,93882.0,93881.0,0.07673661]
[1745756053945,1.40248,93882.0,93881.0,0.07673661]
[1745756056739,1.40248,93882.0,93881.0,0.01263661]
[1745756063543,0.68088,93882.0,93881.0,0.01263661]
[1745756063739,1.40248,93882.0,93881.0,0.01263661]
[1745756065842,0.68088,93882.0,93881.0,0.01263661]
[1745756066042,1.40248,93882.0,93881.0,0.01263661]
[1745756067550,0.68088,93882.0,93881.0,0.01263661]
[1745756067748,1.40248,93882.0,93881.0,0.01263661]
[1745756068954,1.37178,93882.0,93881.0,0.01263661]
[1745756069141,1.22028,93882.0,93881.0,0.13263661]
[1745756070251,1.22028,93882.0,93881.0,0.01263661]
[1745756070451,1.35581228,93882.0,93881.0,0.01263661]
[1745756070655,1.35581228,93882.0,93881.0,0.90174261]
[1745756071153,1.34249629,93882.0,93881.0,1.02174261]
[1745756073444,1.20696401,93882.0,93881.0,1.02174261]
[1745756076152,1.20696401,93882.0,93881.0,0.48915261]
[1745756076348,1.20696401,93882.0,93881.0,0.23915261]
[1745756076544,0.48536401,93882.0,93881.0,0.23915261]
[1745756076741,0.84616401,93882.0,93881.0,0.23915261]
[1745756083352,0.48536401,93882.0,93881.0,0.23915261]
[1745756083553,0.84616401,93882.0,93881.0,0.23915261]
[1745756083858,0.84616401,93882.0,93881.0,0.13263661]
[1745756084157,0.84616401,93882.0,93881.0,0.01263661]
[1745756084455,0.84616401,93882.0,93881.0,0.07835661]
[1745756086055,0.48536401,93882.0,93881.0,0.07835661]
[1745756086251,0.84616401,93882.0,93881.0,0.07835661]
[1745756094053,1.20696401,93882.0,93881.0,0.07835661]
[1745756095260,1.20696401,93882.0,93881.0,0.01263661]
[1745756095461,1.20696401,93882.0,93881.0,0.07835661]
[1745756099465,0.48536401,93882.0,93881.0,0.07835661]
[1745756099665,1.20696401,93882.0,93881.0,0.07835661]
[1745756101467,1.56348002,93882.0,93881.0,0.01263661]
[1745756102057,1.68348002,93882.0,93881.0,0.01263661]
[1745756102872,1.43348002,93882.0,93881.0,0.01263661]
[1745756104461,1.43348002,93882.0,93881.0,0.00456429]
[1745756106976,1.85138002,93882.0,93881.0,0.00456429]
[1745756110476,1.12978002,93882.0,93881.0,0.00456429]
[1745756110682,1.85138002,93882.0,93881.0,0.00456429]
[1745756111385,1.12978002,93882.0,93881.0,0.00456429]
[1745756111688,1.85138002,93882.0,93881.0,0.00456429]
[1745756114090,1.74486401,93882.0,93881.0,0.00456429]
[1745756116891,1.02326401,93882.0,93881.0,0.00456429]
[1745756117087,1.74486401,93882.0,93881.0,0.00456429]
[1745756118793,1.77576401,93882.0,93881.0,0.00456429]
[1745756119401,1.05416401,93882.0,93881.0,0.00456429]
[1745756119596,1.77576401,93882.0,93881.0,0.00456429]
[1745756120494,1.77576401,93882.0,93881.0,0.03676429]
[1745756121382,1.05416401,93882.0,93881.0,0.03676429]
[1745756121985,1.77576401,93882.0,93881.0,0.03676429]
[1745756122893,1.05416401,93882.0,93881.0,0.03676429]
[1745756123095,1.77576401,93882.0,93881.0,0.03676429]
[1745756123891,1.05416401,93882.0,93881.0,0.03676429]
[1745756124192,1.77576401,93882.0,93881.0,0.00456429]
[1745756125390,1.05416401,93882.0,93881.0,0.00456429]
[1745756125893,1.77576401,93882.0,93881.0,0.00456429]
[1745756126797,1.74486401,93882.0,93881.0,0.00456429]
[1745756127187,1.62486401,93882.0,93881.0,0.00456429]
[1745756130285,1.20696401,93882.0,93881.0,0.00456429]
[1745756133391,1.20696401,93882.0,93881.0,0.07052429]
[1745756136094,1.32696401,93882.0,93881.0,0.00456429]
[1745756136297,1.35976401,93882.0,93881.0,0.00456429]
[1745756142093,1.46628002,93882.0,93881.0,0.00456429]
[1745756144195,1.35976401,93882.0,93881.0,0.00456429]
[1745756146805,0.63816401,93882.0,93881.0,0.00456429]
[1745756147000,1.35976401,93882.0,93881.0,0.00456429]
[1745756147998,1.77766401,93882.0,93881.0,0.00456429]
[1745756151411,1.77766401,93882.0,93881.0,0.06966429]
[1745756155107,1.77766401,93882.0,93881.0,0.03726429]
[1745756155907,1.77766401,93882.0,93881.0,0.07016429]
[1745756159208,1.65766401,93882.0,93881.0,0.07016429]
[1745756159617,1.62486401,93882.0,93881.0,0.07016429]
[1745756161811,1.65506401,93882.0,93881.0,0.07016429]
[1745756162209,1.65506401,93882.0,93881.0,0.00456429]
[1745756162404,1.68586401,93882.0,93881.0,0.00456429]
[1745756163205,1.80586401,93882.0,93881.0,0.00456429]
[1745756165615,1.08426401,93882.0,93881.0,0.00456429]
[1745756165817,1.80586401,93882.0,93881.0,0.00456429]
[1745756171519,1.83796401,93882.0,93881.0,0.00456429]
[1745756180623,1.11636401,93882.0,93881.0,0.00456429]
[1745756180826,1.83796401,93882.0,93881.0,0.00456429]
[1745756182921,1.94448002,93882.0,93881.0,0.00456429]
[1745756183122,1.94448002,93882.0,93851.0,0.06512]
[1745756183322,0.3608,93852.0,93851.0,0.0732699]
[1745756183724,0.3608,93852.0,93851.0,0.9625819]
[1745756184215,0.3608,93852.0,93851.0,1.0825819]
[1745756184824,0.84016,93852.0,93851.0,0.8325819]
[1745756185026,0.84016,93852.0,93851.0,0.2998219]
[1745756186133,0.82983958,93852.0,93851.0,0.2998219]
[1745756186329,0.83283958,93852.0,93851.0,0.2998219]
[1745756188230,0.83283958,93852.0,93851.0,0.1932699]
[1745756188834,0.48536,93852.0,93851.0,0.1932699]
[1745756189132,0.84616,93852.0,93851.0,0.1932699]
[1745756189630,0.84616,93852.0,93851.0,0.1281499]
[1745756190825,0.84616,93852.0,93851.0,0.2347019]
[1745756191217,0.84616,93852.0,93851.0,0.2998219]
[1745756192923,0.84616,93852.0,93851.0,0.1281499]
[1745756193618,0.48536,93852.0,93851.0,0.1281499]
[1745756193819,1.20696,93852.0,93851.0,0.1281499]
[1745756195018,1.20696,93852.0,93851.0,0.1932699]
[1745756199022,0.48536,93852.0,93851.0,0.1932699]
[1745756199224,1.20696,93852.0,93851.0,0.1932699]
[1745756200731,0.48536,93852.0,93851.0,0.1932699]
[1745756201140,1.20696,93852.0,93851.0,0.1932699]
[1745756201634,0.48536,93852.0,93851.0,0.1932699]
[1745756201826,1.20696,93852.0,93851.0,0.1932699]
[1745756208132,0.48536,93852.0,93851.0,0.1932699]
[1745756208333,1.20696,93852.0,93851.0,0.1932699]
[1745756210135,1.20696,93852.0,93851.0,0.2998219]
[1745756212036,1.20696,93852.0,93851.0,0.1932699]
[1745756212631,0.11362609,93856.0,93851.0,1.0825819]
[1745756212632,0.00532,93856.0,93851.0,1.0825819]
[1745756212823,0.10830609,93860.0,93851.0,1.0825819]
[1745756212824,0.10830609,93860.0,93852.0,0.169548]
[1745756213029,0.10830609,93860.0,93859.0,0.3608]
[1745756213228,0.10830609,93860.0,93859.0,0.587344]
[1745756214231,0.60830609,93860.0,93859.0,0.587344]
[1745756214429,0.60830609,93860.0,93859.0,0.226544]
[1745756214628,0.61130609,93860.0,93859.0,0.587344]
[1745756215127,0.59798728,93860.0,93859.0,0.587344]
[1745756215538,0.60098728,93860.0,93859.0,0.587344]
[1745756216037,0.59798728,93860.0,93859.0,0.587344]
[1745756216240,0.60098728,93860.0,93859.0,0.592344]
[1745756217335,0.506,93860.0,93859.0,0.592344]
[1745756218634,0.506,93860.0,93859.0,0.231544]
[1745756218832,0.506,93860.0,93859.0,0.953144]
[1745756220428,0.506,93860.0,93859.0,0.592344]
[1745756229045,0.49268169,93860.0,93859.0,0.592344]
[1745756229441,0.52378169,93860.0,93859.0,0.231544]
[1745756229642,0.52378169,93860.0,93859.0,0.592344]
[1745756230448,1e-08,93860.0,93859.0,0.592344]
[1745756230743,0.033,93870.0,93859.0,0.592344]
[1745756230943,0.3608,93885.0,93869.0,0.3608]
[1745756231155,0.0318,93884.0,93870.0,0.0968]
[1745756231442,0.0318,93884.0,93871.0,0.06528]
[1745756231841,0.0318,93884.0,93872.0,0.0641]
[1745756232238,0.5,93878.0,93872.0,0.0641]
[1745756232840,0.5,93878.0,93877.0,0.3608]
[1745756233633,0.503,93878.0,93877.0,0.3608]
[1745756234547,0.506,93878.0,93877.0,0.47531999]
[1745756234938,0.503,93878.0,93877.0,0.47531999]
[1745756235139,0.506,93878.0,93877.0,0.60031999]
[1745756240945,0.5375,93878.0,93877.0,0.60031999]
[1745756244446,0.5375,93878.0,93877.0,0.23951999]
[1745756244847,0.5375,93878.0,93877.0,0.60031999]
[1745756245048,0.5375,93878.0,93877.0,0.4938]
[1745756246855,0.52418387,93878.0,93877.0,0.4938]
[1745756248058,0.49268387,93878.0,93877.0,0.60031999]
[1745756250054,0.49268387,93878.0,93877.0,0.23951999]
[1745756250257,0.0318,93883.0,93877.0,0.96111999]
[1745756250465,0.0318,93883.0,93878.0,0.0958]
[1745756250948,0.0318,93883.0,93878.0,0.20231999]
[1745756251150,0.0318,93883.0,93878.0,0.32231999]
[1745756251453,0.0348,93883.0,93878.0,0.32231999]
[1745756251657,0.0378,93883.0,93879.0,0.10651999]
[1745756251957,0.0622,93887.0,93879.0,0.10651999]
[1745756252152,0.0331,93902.0,93886.0,0.3608]
[1745756252356,0.0331,93902.0,93894.0,0.3608]
[1745756252557,0.0331,93902.0,93895.0,0.09634]
[1745756252754,0.0331,93902.0,93895.0,0.11800459]
[1745756253458,0.5,93899.0,93895.0,0.11800459]
[1745756253674,0.0331,93898.0,93895.0,0.11800459]
[1745756253957,0.0331,93898.0,93895.0,0.13100459]
[1745756254954,0.0331,93898.0,93897.0,0.3608]
[1745756255352,0.0694,93898.0,93897.0,0.3608]
[1745756256252,0.5381,93898.0,93897.0,0.4673]
[1745756256547,0.44867158,93898.0,93897.0,0.4783]
[1745756256747,0.32467158,93898.0,93897.0,0.4783]
[1745756256958,0.31335968,93898.0,93897.0,0.5557]
[1745756257158,0.13706919,93898.0,93897.0,0.6757]
[1745756257756,0.004,93898.0,93897.0,0.6757]
[1745756259258,0.004,93898.0,93897.0,1.0365]
[1745756261054,0.004,93898.0,93897.0,0.3149]
[1745756261360,0.004,93898.0,93897.0,1.0365]
[1745756261955,0.16818261,93909.0,93897.0,1.0365]
[1745756262150,0.16818261,93909.0,93908.0,0.3608]
[1745756262556,0.0328,93909.0,93908.0,0.3608]
[1745756263259,0.5328,93909.0,93908.0,0.3608]
[1745756263460,0.5348,93909.0,93908.0,0.3718]
[1745756263654,0.5348,93909.0,93908.0,0.43696]
[1745756264060,0.5368,93909.0,93908.0,0.07616]
[1745756264260,0.5368,93909.0,93908.0,0.43696]
[1745756264856,0.5368,93909.0,93908.0,0.44896]
[1745756265867,0.5368,93909.0,93908.0,0.08816]
[1745756266062,0.5368,93909.0,93908.0,0.44896]
[1745756266264,0.5348,93909.0,93908.0,0.43796]
[1745756266465,0.5368,93909.0,93908.0,0.44996]
[1745756267455,0.5368,93909.0,93908.0,0.45776261]
[1745756268964,0.5368,93909.0,93908.0,0.09696261]
[1745756269269,0.5368,93909.0,93908.0,0.45776261]
[1745756269969,0.5368,93909.0,93908.0,0.09696261]